[Event "55th Biel Festival ATO 2022"]
[Site "Biel"]
[Date "2022.07.21"]
[Round "8.3"]
[White "Sala, Matteo"]
[Black "Manmay Chopra"]
[Result "0-1"]
[ECO "C10"]
[WhiteElo "1708"]
[BlackElo "1934"]
[Annotator "TA"]
[PlyCount "68"]
[EventDate "2022.07.13"]
[EventType "swiss"]
[EventCountry "SUI"]
[SourceTitle "playchess.com"]
[Source "ChessBase"]
[SourceQuality "1"]
[TimeControl "40/5400+30:1800+30"]

{[%evp 14,68,51,32,29,20,16,18,41,39,56,59,83,44,58,66,64,58,52,46,92,91,81,55,45,40,39,36,50,0,9,0,83,31,27,0,31,0,0,0,5,0,370,353,347,356,331,332,360,256,308,254,349,-891,-876,-29998,-29999]} 1. e4 {[%emt 0:00:02]} e6 {[%emt 0:02:01]} 2. d4 {[%emt 0:00:06]} d5 {[%emt 0:00:04]} 3. Nd2 {[%emt 0:00:04]} Be7 {[%emt 0:00:03]} 4. Bd3 {[%emt 0:00:42]} dxe4 {[%emt 0:00:19]} 5. Nxe4 {[%emt 0:00:14]} Nd7 {[%emt 0:00:05]} 6. Nf3 {[%emt 0:02:07]} Ngf6 {[%emt 0:00:03]} 7. Nxf6+ {[%emt 0:00:53]} Nxf6 {[%emt 0:00:06]} 8. Be3 {[%emt 0:12:12]} Nd5 {[%emt 0:02:29] C10: French with 3 Nc3: Unusual Black 3rd moves and 3...dxe4.} 9. c3 {[%emt 0:05:24]} c5 {[%emt 0:01:23]} 10. Qc2 {[%emt 0:16:13] [#]} Nxe3 $146 {[%emt 0:05:08] The position is equal.} ({Predecessor:} 10... h6 11. Qd2 Qc7 12. Bb5+ Bd7 13. Bxd7+ Qxd7 14. dxc5 Nxe3 15. Qxe3 Qb5 16. b4 Bf6 {½-½ (32) Brenjo,S (2481)-Ristic,N (2301) Belgrade 2007}) 11. fxe3 {[%emt 0:00:08]} cxd4 {[%emt 0:00:29]} 12. exd4 {[%emt 0:02:04]} h6 {[%emt 0:00:59]} 13. O-O-O {[%emt 0:09:56]} Bf6 {[%emt 0:02:18]} 14. g4 {[%emt 0:01:47]} Qc7 {[%emt 0:02:53]} 15. Kb1 {[%emt 0:05:48]} Bd7 {[%emt 0:00:51]} 16. h4 {[%emt 0:04:26]} Bc6 {[%emt 0:20:58] [#]} (16... O-O-O $14) 17. Be4 $1 $16 {[%emt 0:03:43]} O-O-O {[%emt 0:13:35]} 18. g5 {[%emt 0:03:00]} hxg5 {[%emt 0:00:31]} 19. hxg5 {[%emt 0:01:16]} Rxh1 {[%emt 0:07:37]} 20. Rxh1 {[%emt 0:00:02]} Be7 {[%emt 0:06:39]} 21. Rh7 {[%emt 0:07:04]} Qf4 {[%emt 0:04:26][%csl LRe4,LRg5]} 22. Rh4 $36 {[%emt 0:14:23][%mdl 2048] White is pushing.} Qd6 {[%emt 0:06:08]} (22... Bxe4 $11 {keeps the balance.} 23. Qxe4 Qxe4+ 24. Rxe4 Rh8) 23. Bxc6 {[%emt 0:00:54]} (23. Ne5 $16) 23... Qxc6 $14 {[%emt 0:00:09]} 24. Ne5 {[%emt 0:01:08][%cal Bf3e5,Be5d3,Bd3e1][%mdl 32]} Qb5 {[%emt 0:03:04] [#] Hoping for ...Qf1+.} (24... Qd5 $5 {[%cal Re7g5]}) 25. c4 {[%emt 0:05:56]} (25. Rh1 $5 {[%cal Re5f7]}) 25... Qa5 {[%emt 0:05:07]} 26. Qc3 {[%emt 0:02:50] Against Qe1+} Bb4 {[%emt 0:02:51]} 27. Qf3 {[%emt 0:00:47]} Be1 $2 {[%emt 0:01:42][%mdl 8192]} (27... Bd6 $11 28. Qe3 Bxe5 29. Qxe5 Qd2) 28. Re4 {[%emt 0:00:05]} Qd2 {[%emt 0:03:59]} 29. Nd3 {[%emt 0:00:40] Prevents Bf2.} ({Less strong is} 29. Nxf7 Rxd4 30. Rxe6 Bg3 $16) 29... Qxg5 {[%emt 0:04:37]} 30. Nxe1 {[%emt 0:00:18]} ({Much less strong is} 30. Rxe1 $6 Rxd4 31. Re4 (31. Qxf7 Rxd3 32. Qxe6+ Kc7 $11) 31... Rd7 $18) 30... Qg6 {[%emt 0:00:19]} 31. Qg4 {[%emt 0:00:56]} Qh7 {[%emt 0:00:57] And now ...Rxd4 would win.} 32. Qh4 {[%emt 0:00:32]} Qg6 {[%emt 0:00:15] Threatens to win with ...Rxd4.} 33. Qf4 $4 {[%emt 0:00:35][%mdl 8192]} (33. Nc2 $18) 33... Rxd4 $1 $19 {[%emt 0:00:08]} 34. Ka1 {[%emt 0:00:00]} Rd1+ {[%emt 0:00:00] Black used his chance.  Weighted Error Value: White=0.76/Black=0.45} 0-1

[Event "55th Biel Festival ATO 2022"]
[Site "Biel"]
[Date "2022.07.21"]
[Round "8.4"]
[White "Dhruv Rattan"]
[Black "Stijve Niels"]
[Result "0-1"]
[ECO "B42"]
[WhiteElo "1316"]
[BlackElo "1958"]
[Annotator "TA"]
[PlyCount "46"]
[EventDate "2022.07.13"]
[EventType "swiss"]
[EventCountry "SUI"]
[SourceTitle "playchess.com"]
[Source "ChessBase"]
[SourceQuality "1"]
[TimeControl "40/5400+30:1800+30"]

{[%evp 16,46,59,55,77,49,60,43,50,41,40,10,9,0,0,0,0,-59,-34,-234,-243,-219,-149,-705,-665,-690,-662,-885,-887,-29991,-1991,-1727,-1568]} 1. e4 {[%emt 0:00:18]} c5 {[%emt 0:00:07]} 2. Nf3 {[%emt 0:00:05]} e6 {[%emt 0:00:07]} 3. d4 {[%emt 0:00:07]} cxd4 {[%emt 0:00:06]} 4. Nxd4 {[%emt 0:00:05]} a6 {[%emt 0:00:06]} 5. Bd3 {[%emt 0:00:23]} Nf6 {[%emt 0:01:08]} 6. O-O {[%emt 0:00:24]} Qc7 {[%emt 0:00:27]} 7. c4 {[%emt 0:02:48]} Nc6 $1 {[%emt 0:14:29] 7...Nc6 scores better than 7...d6.} 8. Nxc6 {[%emt 0:00:18]} bxc6 {[%emt 0:10:27]} 9. Nc3 {[%emt 0:00:08]} Bc5 {[%emt 0:06:38] B42: Sicilian: Kan Variation: 5 Bd3.} 10. Qe2 {[%emt 0:01:15]} (10. Na4 $5 {[%cal Ra4c5]} Bd4 11. Re1 $11) 10... e5 {[%emt 0:07:03]} 11. Bg5 {[%emt 0:05:36]} d6 {[%emt 0:03:09] [#] White is slightly better.} 12. Bxf6 $146 {[%emt 0:01:58]} ({Predecessor:} 12. h3 Be6 13. Rac1 h6 14. Be3 g5 15. Na4 Qe7 16. Bxc5 dxc5 17. Qe3 Nd7 18. Be2 {0-1 (32) Lim,B (1898)-Meng,R (1826) Auckland 2020}) 12... gxf6 {[%emt 0:00:08]} 13. Qf3 {[%emt 0:03:47]} Ke7 {[%emt 0:02:58]} 14. Na4 {[%emt 0:01:03]} Bd4 {[%emt 0:01:12]} 15. c5 {[%emt 0:02:23]} dxc5 {[%emt 0:06:58]} 16. Rab1 {[%emt 0:08:28]} (16. Bc4 $11) 16... Rg8 {[%emt 0:06:39][%cal Bh8g8,Bg8g5,Bg5h5][%mdl 32] [#] aiming for ...Bg4.} 17. b3 $2 {[%emt 0:03:34]} ({Better is} 17. Bc4 $15) 17... Bg4 $19 {[%emt 0:16:22][%cal Bc8g4,Bg4h5,Bh5f3][%mdl 32]} 18. Qg3 {[%emt 0:00:05]} Bh5 {[%emt 0:01:28] A strong pair of Bishops.} ({Inferior is} 18... Be2 19. Qh3 Bxf1 20. Bxf1) 19. Qh4 {[%emt 0:01:41][%mdl 8192]} (19. Qh3 $17 Bg4 20. Qg3) 19... Bf3 {[%emt 0:03:23]} 20. g3 {[%emt 0:00:37]} Rg5 {[%emt 0:00:10]} 21. Qxh7 {[%emt 0:11:05]} Rh5 {[%emt 0:01:44]} 22. Qg7 {[%emt 0:00:02]} Rah8 {[%emt 0:00:34]} (22... Qd7 $142 23. Bc4 Rf8 24. Nb6 Qh3 25. Nc8+ Kd7 26. Nb6+ Kc7 27. Na8+ Kb7 28. Qxf7+ Rxf7 29. Bxa6+ Kb8 30. Rfe1 Qg2#) 23. Bc4 {[%emt 0:03:12]} R8h7 {[%emt 0:03:18] White did not feel at home in the position after the opening.  Weighted Error Value: White=1.37/Black=0.52} 0-1

[Event "55th Biel Festival ATO 2022"]
[Site "Biel"]
[Date "2022.07.21"]
[Round "8.5"]
[White "Arndt Uwe"]
[Black "Kaser, Nicolas"]
[Result "1-0"]
[ECO "D85"]
[WhiteElo "1964"]
[BlackElo "1866"]
[Annotator "TA"]
[PlyCount "83"]
[EventDate "2022.07.13"]
[EventType "swiss"]
[EventCountry "SUI"]
[SourceTitle "playchess.com"]
[Source "ChessBase"]
[SourceQuality "1"]
[TimeControl "40/5400+30:1800+30"]

{[%evp 18,83,18,11,14,0,56,55,75,57,79,82,110,100,192,187,186,192,197,185,202,77,130,45,99,38,32,25,30,30,108,36,49,15,6,9,56,59,48,60,220,159,225,229,214,180,176,175,274,274,333,204,396,200,196,132,443,383,1162,585,1722,1175,29990,29991,29991,29991,29991,29992]} 1. d4 {[%emt 0:00:03]} Nf6 {[%emt 0:00:23]} 2. c4 {[%emt 0:00:10]} g6 {[%emt 0:00:10]} 3. Nc3 {[%emt 0:00:12]} d5 {[%emt 0:00:13]} 4. cxd5 {[%emt 0:00:10]} Nxd5 {[%emt 0:00:10]} 5. e4 {[%emt 0:00:09]} Nxc3 {[%emt 0:00:10]} 6. bxc3 {[%emt 0:00:06][%cal Bb2c3,Bc3d4,Bd4d5][%mdl 32]} Bg7 {[%emt 0:00:10]} 7. Nf3 {[%emt 0:00:29]} c5 {[%emt 0:00:21]} 8. h3 {[%emt 0:01:07]} O-O {[%emt 0:01:32]} 9. Be2 {[%emt 0:00:12]} Nc6 {[%emt 0:03:24]} 10. Be3 {[%emt 0:00:15]} cxd4 {[%emt 0:07:12] D85: Exchange Grünfeld: Unusual White 7th moves and lines with 7 Nf3.} 11. cxd4 {[%emt 0:00:16]} b6 {[%emt 0:04:28]} (11... f5 $11) 12. Rc1 $14 {[%emt 0:03:47] [#]} Bd7 $146 {[%emt 0:07:53] White is slightly better.} ({Predecessor:} 12... Bb7 13. d5 Ne5 14. Nd4 e6 15. dxe6 Bxe4 16. O-O Qd6 17. f3 Bb7 18. f4 Qd5 {1-0 (112) Parligras,M (2616)-Puranik,A (2495) Abu Dhabi 2017}) 13. d5 {[%emt 0:02:16]} Na5 {[%emt 0:03:19]} 14. O-O {[%emt 0:14:59]} Qb8 {[%emt 0:17:02]} 15. Qd2 {[%emt 0:02:22]} Rc8 {[%emt 0:14:26] [#]} (15... Qd6 $16) 16. Ba6 $1 $18 {[%emt 0:05:44]} Rxc1 {[%emt 0:01:31]} 17. Rxc1 {[%emt 0:00:15]} ({Don't play} 17. Qxc1 $6 Qd6 $14) 17... Qd8 {[%emt 0:05:14]} 18. Bf4 {[%emt 0:02:05]} Bc8 {[%emt 0:03:43]} 19. Be2 {[%emt 0:02:53]} (19. Bb5 $18 {is more deadly.}) 19... Nb7 {[%emt 0:03:47]} (19... Bb7 $142) 20. Nd4 {[%emt 0:02:34]} (20. Bb5 $16) 20... Bd7 {[%emt 0:02:12]} ({Black should try} 20... Nc5 $14) 21. Bc7 {[%emt 0:08:24] 0x0.0002d92cfccadp-1022s more active pieces.} (21. e5 $16) 21... Qe8 $14 {[%emt 0:01:46]} 22. Nb3 {[%emt 0:14:29]} Nd6 {[%emt 0:04:34]} 23. Qf4 {[%emt 0:04:49]} Nb5 {[%emt 0:02:23]} (23... Qf8 $11 {remains equal.} 24. Rc2 Rc8) 24. e5 {[%emt 0:03:16]} ({White should play} 24. Bxb5 $16 Bxb5 25. Be5) 24... Rc8 {[%emt 0:02:14]} 25. Bxb5 {[%emt 0:08:48]} Bxb5 {[%emt 0:00:11]} 26. Nd4 {[%emt 0:01:19]} Bd7 {[%emt 0:01:29]} (26... Ba6 $1 $11) 27. Qe3 {[%emt 0:03:48]} Qf8 {[%emt 0:03:07]} 28. f4 {[%emt 0:00:58][%cal Od4c6]} f5 $2 {[%emt 0:02:30]} (28... Ba4 $14) 29. Qa3 {[%emt 0:01:44]} Qf7 {[%emt 0:02:24]} (29... e6 $16 {is a better defense.} 30. Bd6 (30. Qxa7 Qb4 $16) 30... Rxc1+ 31. Qxc1 Qe8) 30. Qb3 $18 {[%emt 0:01:09]} Qe8 {[%emt 0:01:09]} 31. Kh2 {[%emt 0:01:04]} Ba4 {[%emt 0:02:24]} 32. Qc4 {[%emt 0:04:29] Threatens to win with d6+.} b5 {[%emt 0:00:48]} (32... h5 {might work better.} 33. Qa6 Bh6) 33. Qc5 {[%emt 0:00:52]} a5 {[%emt 0:01:15]} 34. Ne6 {[%emt 0:01:04][%cal Bd4e6,Be6g5,Bg5e6][%mdl 32] Hoping for d6.} Bh8 $2 {[%emt 0:01:54]} (34... Bh6 35. g3 b4) 35. g4 {[%emt 0:03:05]} (35. Qe3 $142) 35... fxg4 {[%emt 0:00:37] [#]} 36. hxg4 {[%emt 0:00:18]} (36. d6 $1 $18) 36... g5 $2 {[%emt 0:01:17][%mdl 8192] Loses the game.} (36... b4 $16 {is tougher.}) 37. Nxg5 {[%emt 0:00:33] aiming for d6.} h5 $2 {[%emt 0:01:01]} (37... h6) 38. Qg1 {[%emt 0:01:19]} h4 {[%emt 0:00:24]} 39. Qe3 {[%emt 0:03:38] White threatens Qe4 and mate.} Qd7 {[%emt 0:00:23] [#]} 40. Qe4 $1 {[%emt 0:01:22] White mates.} Bg7 {[%emt 0:00:47]} (40... Bc2 41. Rxc2) 41. Qh7+ {[%emt 0:31:33]} Kf8 {[%emt 0:30:07]} 42. Ne6+ {[%emt 0:00:10] Weighted Error Value: White=0.45/Black=0.76} 1-0

[Event "55th Biel Festival ATO 2022"]
[Site "Biel"]
[Date "2022.07.21"]
[Round "8.6"]
[White "Smeets Kobe"]
[Black "Altok, Mesut"]
[Result "1-0"]
[ECO "C41"]
[WhiteElo "1963"]
[BlackElo "1890"]
[Annotator "TA"]
[PlyCount "53"]
[EventDate "2022.07.13"]
[EventType "swiss"]
[EventCountry "SUI"]
[SourceTitle "playchess.com"]
[Source "ChessBase"]
[SourceQuality "1"]
[TimeControl "40/5400+30:1800+30"]

{[%evp 14,53,28,14,34,34,33,22,29,31,34,25,31,19,22,0,43,-18,0,0,37,35,82,34,138,141,134,129,143,160,149,155,169,145,275,271,279,95,145,149,493,483]} 1. e4 {[%emt 0:00:03]} d6 {[%emt 0:05:48]} 2. d4 {[%emt 0:00:13]} Nd7 {[%emt 0:00:04]} 3. Nc3 {[%emt 0:01:48]} e5 {[%emt 0:00:04]} 4. Nf3 {[%emt 0:01:44]} Ngf6 {[%emt 0:00:17]} 5. Be2 {[%emt 0:04:31]} Be7 {[%emt 0:00:15]} 6. O-O {[%emt 0:00:45]} c6 {[%emt 0:00:05]} 7. a4 {[%emt 0:00:33][%cal Ba2a4,Ba4a5][%mdl 32]} O-O {[%emt 0:01:36]} 8. h3 {[%emt 0:02:29]} Qa5 {[%emt 0:03:36] C41: Philidor Defence.} 9. Bd2 {[%emt 0:05:22]} Qc7 {[%emt 0:01:03]} 10. a5 {[%emt 0:05:35]} Re8 {[%emt 0:00:22] The position is equal.} 11. Be3 {[%emt 0:13:32]} Nf8 {[%emt 0:01:08]} 12. Qd2 {[%emt 0:01:02]} Ng6 {[%emt 0:00:22] [#]} 13. Rfb1 $146 {[%emt 0:06:45]} ({Predecessor:} 13. d5 Bd7 14. Bd3 Nh5 15. a6 b6 16. dxc6 Bxc6 17. Nd5 Bxd5 18. exd5 Ngf4 19. Bb5 Rf8 20. Ra4 {1-0 (38) Pereira,A (1081)-Ausan,L (1059) LSS email 2012}) 13... Bd7 {[%emt 0:01:01]} 14. b4 {[%emt 0:06:32]} Qc8 {[%emt 0:01:06]} 15. Kh2 {[%emt 0:02:42]} (15. b5 $14) 15... Qc7 {[%emt 0:13:11]} (15... exd4 $11 16. Qxd4 c5 17. bxc5 dxc5) 16. Kg1 $14 {[%emt 0:16:05]} Qc8 {[%emt 0:16:25]} 17. Bf1 {[%emt 0:03:09]} Nh5 {[%emt 0:04:22]} (17... exd4 $14 18. Nxd4 (18. Qxd4 Be6 $11) 18... Bf8) 18. Ne2 {[%emt 0:00:11] White is more active.} (18. b5 $16) 18... f5 {[%emt 0:13:59]} ({Better is} 18... exd4 $14 19. Nfxd4 Nf6) 19. exf5 $16 {[%emt 0:00:24]} Bxf5 {[%emt 0:00:05]} 20. g4 {[%emt 0:10:28]} exd4 {[%emt 0:00:27]} 21. Nexd4 {[%emt 0:08:36]} (21. gxh5 dxe3 22. fxe3 Ne5 23. Nxe5 dxe5 $17) 21... Bxg4 {[%emt 0:12:01]} 22. hxg4 {[%emt 0:00:02]} Qxg4+ {[%emt 0:00:18]} 23. Kh1 {[%emt 0:00:02]} Rf8 {[%emt 0:04:32]} (23... Kh8 $16 24. Nh2 (24. a6 b6 $18) 24... Qc8) 24. Nh2 $18 {[%emt 0:00:30]} Qh4 {[%emt 0:00:20]} 25. Bd3 $2 {[%emt 0:01:50]} (25. a6 $1 $18 {[%cal Ra6b7] is the precise move to win.} b6 26. Nxc6) 25... Ne5 {[%emt 0:03:04] [#]} ({Black should try} 25... d5) 26. Rg1 $1 $16 {[%emt 0:01:15]} ({Not} 26. Nf5 $2 {[#]} Rxf5 $1 {[%mdl 512]} 27. Qc3 (27. Bxf5 $2 {too greedy.} Nf3 $19) 27... Rf7 $19) 26... c5 $2 {[%emt 0:04:53][%mdl 8192]} (26... Kh8 $16 {is more resistant.}) 27. Nf5 {[%emt 0:01:16] Weighted Error Value: White=0.25 (precise) /Black=0.46} 1-0

[Event "55th Biel Festival ATO 2022"]
[Site "Biel"]
[Date "2022.07.21"]
[Round "8.7"]
[White "Marcos Herrero, Francisco"]
[Black "Klein Ethan"]
[Result "0-1"]
[ECO "A36"]
[WhiteElo "1877"]
[BlackElo "1952"]
[Annotator "TA"]
[PlyCount "58"]
[EventDate "2022.07.13"]
[EventType "swiss"]
[EventCountry "SUI"]
[SourceTitle "playchess.com"]
[Source "ChessBase"]
[SourceQuality "1"]
[TimeControl "40/5400+30:1800+30"]

{[%evp 14,58,8,8,8,11,12,-14,11,0,0,-4,12,-13,16,15,6,13,3,-22,17,17,33,-2,100,106,101,112,119,-133,-132,-125,-128,-91,-91,-95,-95,-470,-252,-1547,-1574,-1487,-1438,-1693,-1732,-29984,-29985]} 1. c4 {[%emt 0:06:40]} g6 {[%emt 0:01:15]} 2. g3 {[%emt 0:00:10]} Bg7 {[%emt 0:00:07]} 3. Bg2 {[%emt 0:00:04]} e6 {[%emt 0:01:18]} 4. Nc3 {[%emt 0:00:10]} Ne7 {[%emt 0:00:37]} 5. e4 {[%emt 0:04:58]} c5 {[%emt 0:04:29]} 6. Nge2 {[%emt 0:00:34]} Nbc6 {[%emt 0:00:13]} 7. d3 {[%emt 0:00:19]} O-O {[%emt 0:00:44]} 8. Be3 {[%emt 0:00:10]} Nd4 {[%emt 0:01:51] A36: Symmetrical English vs ...g6: 4 Bg2 Bg7.} 9. Qd2 {[%emt 0:00:17]} d6 {[%emt 0:08:13]} 10. Rc1 {[%emt 0:13:04] [#]} Re8 $146 {[%emt 0:03:29] The position is equal.} ({Predecessor:} 10... Rb8 11. Bh6 a6 12. h4 f6 13. Bxg7 Kxg7 14. h5 g5 15. f4 h6 16. Nxd4 cxd4 {0-1 (32) Ozates,T (2217)-Titichoca Daza,D (2050) Chess.com INT 2021}) 11. Bg5 {[%emt 0:03:42]} a6 {[%emt 0:05:21]} 12. b3 {[%emt 0:09:11]} Rb8 {[%emt 0:04:46]} 13. Bh6 {[%emt 0:05:04]} Bh8 {[%emt 0:02:21]} 14. h4 {[%emt 0:01:40]} b5 {[%emt 0:03:07]} 15. Nxd4 {[%emt 0:02:50]} (15. h5 {feels hotter.} Nec6 16. Nxd4 Nxd4 17. Ne2) 15... cxd4 {[%emt 0:01:58]} 16. Ne2 {[%emt 0:00:05]} Bb7 {[%emt 0:12:20]} 17. h5 {[%emt 0:03:22]} bxc4 {[%emt 0:15:02]} 18. dxc4 {[%emt 0:01:17]} d5 {[%emt 0:01:03]} (18... e5 $11 {remains equal.}) 19. hxg6 $16 {[%emt 0:09:00]} (19. Nxd4 $6 dxe4 20. Be3 Nf5 21. Nxf5 (21. hxg6 Bxd4 22. Bxd4 Qxd4 $15) 21... exf5 $11) (19. exd5 {is more complex.} exd5 20. c5 Bc6 21. hxg6 fxg6 22. Bf4) 19... hxg6 {[%emt 0:06:33]} 20. exd5 {[%emt 0:01:54]} ({But not} 20. Nxd4 $6 dxe4 21. Be3 Qc7 $11) 20... exd5 {[%emt 0:00:39] [#]} 21. O-O $2 {[%emt 0:00:09][%mdl 8192]} (21. c5 $1 $16) 21... dxc4 $17 {[%emt 0:03:12]} 22. Rxc4 {[%emt 0:00:49][%cal Re2d4]} Bxg2 {[%emt 0:02:26]} 23. Kxg2 {[%emt 0:00:14][%cal Re2d4]} Qd5+ {[%emt 0:00:58]} 24. Kg1 {[%emt 0:00:09][%cal Re2d4]} Nf5 {[%emt 0:01:01]} 25. Rfc1 $2 {[%emt 0:02:42][%mdl 8192] [#] Now White is beyond hope.} (25. Bf4 $17 {is a better chance.} Rb7 26. Qd3) 25... Qf3 {[%emt 0:13:15]} (25... Nxh6 $142 26. Rc5 Qe4) 26. Bf4 $2 {[%emt 0:01:49]} (26. Nxd4 Bxd4 27. Rxd4 Nxg3 28. fxg3) 26... Rxe2 $19 {[%emt 0:01:55]} 27. Qxe2 {[%emt 0:00:15]} Qxe2 {[%emt 0:00:24]} 28. Bxb8 {[%emt 0:00:04]} d3 {[%emt 0:01:19]} 29. Kg2 {[%emt 0:03:08]} Ne3+ {[%emt 0:00:28] Weighted Error Value: White=1.18/Black=0.29 (precise)} 0-1

[Event "55th Biel Festival ATO 2022"]
[Site "Biel"]
[Date "2022.07.21"]
[Round "8.9"]
[White "Stalhandske, Julien"]
[Black "Wiesmann, Dominique"]
[Result "0-1"]
[ECO "E00"]
[WhiteElo "1644"]
[BlackElo "1914"]
[Annotator "TA"]
[PlyCount "98"]
[EventDate "2022.07.13"]
[EventType "swiss"]
[EventCountry "SUI"]
[SourceTitle "playchess.com"]
[Source "ChessBase"]
[SourceQuality "1"]
[TimeControl "40/5400+30:1800+30"]

{[%evp 9,98,27,27,20,22,6,19,0,0,10,22,-17,-14,-117,0,0,-12,-21,-6,-12,0,-10,-9,-75,-5,-40,0,0,56,-3,97,53,66,71,73,72,89,16,125,113,232,97,121,121,127,127,102,43,47,10,12,0,0,0,0,0,0,0,0,0,0,-136,-122,-602,-147,-143,-164,-149,-149,-212,-237,-237,-223,-245,-245,-283,-292,-277,-293,-321,-290,-414,-401,-410,-353,-599,-573,-29989,-1820,-29993,-709]} 1. d4 {[%emt 0:00:03]} Nf6 {[%emt 0:00:06]} 2. c4 {[%emt 0:00:08]} e6 {[%emt 0:00:06]} 3. g3 {[%emt 0:00:24]} Bb4+ {[%emt 0:00:11]} 4. Bd2 {[%emt 0:00:30]} Qe7 {[%emt 0:00:16]} 5. Bg2 {[%emt 0:00:53]} Bxd2+ {[%emt 0:00:21]} 6. Nxd2 {[%emt 0:01:50] E00: Catalan Bogo-Indian (3 g3 Bb4+).} d6 {[%emt 0:01:26]} 7. Ngf3 {[%emt 0:01:54]} O-O {[%emt 0:02:49]} 8. Qc2 {[%emt 0:01:32] The position is equal.} e5 {[%emt 0:00:20]} 9. O-O {[%emt 0:09:25]} Nc6 {[%emt 0:04:49]} 10. dxe5 {[%emt 0:02:04]} dxe5 {[%emt 0:00:36]} 11. Rfd1 {[%emt 0:06:09]} (11. Ne4 $11) 11... h6 {[%emt 0:07:48] [#]} (11... e4 $1 $17 {[%cal Re4f3]} 12. Ng5 Nd4) 12. Ne4 $146 {[%emt 0:08:49]} ({Predecessor:} 12. Nf1 Be6 13. Ne3 Qc5 14. Qc3 Rad8 15. a3 a5 16. Rab1 Nd4 17. Kf1 Ne4 18. Qc1 {0-1 (27) De Oliveira,A (1797)-Duarte,R (2133) Belo Horizonte 2013}) 12... Nxe4 {[%emt 0:01:19]} 13. Qxe4 {[%emt 0:00:09]} f5 {[%emt 0:00:31]} 14. Qc2 {[%emt 0:15:21]} Qf6 {[%emt 0:05:23]} 15. Qc3 {[%emt 0:07:54]} Be6 {[%emt 0:04:48]} 16. Rd2 {[%emt 0:14:35] [#]} (16. e3 $11) 16... g5 {[%emt 0:06:39]} (16... e4 $1 $17 {Threatens to win with ...Qxc3.} 17. Nd4 Nxd4 18. Qxd4 Qxd4 19. Rxd4 Rad8 20. Rxd8 Rxd8) 17. b4 {[%emt 0:04:48]} g4 {[%emt 0:03:03]} (17... e4 $5 {[%cal Rf6c3]} 18. Nd4 Rad8 $15) 18. Nh4 {[%emt 0:04:34]} Rae8 {[%emt 0:07:11]} (18... e4 $11 19. Qxf6 Rxf6) 19. Rad1 {[%emt 0:02:32]} (19. b5 $14 Nd8 20. Rad1) 19... Bc8 {[%emt 0:03:10]} (19... e4 $1 $11 {keeps the balance.} 20. Qxf6 Rxf6) 20. Bd5+ {[%emt 0:03:05]} Kh7 {[%emt 0:00:22]} 21. c5 {[%emt 0:04:52]} Nd4 {[%emt 0:05:58]} 22. e3 {[%emt 0:01:59]} Ne6 {[%emt 0:01:03]} 23. f4 {[%emt 0:02:09] Prevents Ng5.} ({White should try} 23. c6 $16 b6 24. Bb3) 23... Ng7 {[%emt 0:03:46]} (23... gxf3 $1 $11 24. Nxf3 Ng5) 24. Bb3 $16 {[%emt 0:01:47]} Qe7 {[%emt 0:07:01] [#]} (24... exf4 $16 25. Qxf6 Rxf6) 25. Bc2 {[%emt 0:01:26]} (25. Ba4 $1 $18 {[%cal Ra4e8] and the rest is easy.}) 25... exf4 {[%emt 0:11:11]} 26. exf4 {[%emt 0:00:17]} Rd8 {[%emt 0:00:10]} 27. Rxd8 {[%emt 0:01:16]} Rxd8 {[%emt 0:00:01]} 28. Rxd8 {[%emt 0:00:40]} (28. Re1 $16 Qf7 29. Bb3) 28... Qxd8 $14 {[%emt 0:00:02]} 29. Qd3 {[%emt 0:00:15]} Qf6 {[%emt 0:00:51]} 30. Kf2 {[%emt 0:00:36]} Qb2 {[%emt 0:01:24]} 31. a3 {[%emt 0:01:34]} Be6 {[%emt 0:02:24]} 32. Ng2 {[%emt 0:01:37]} Bd5 {[%emt 0:00:58] Strongly threatening ...Be4.} 33. Ne3 {[%emt 0:00:32]} Be4 {[%emt 0:00:07]} 34. Qb3 {[%emt 0:00:28]} Qd4 {[%emt 0:01:22]} 35. a4 {[%emt 0:00:48]} (35. Bxe4 $11 {remains equal.} Qxe4 36. Qd5) 35... Qd2+ $17 {[%emt 0:01:49]} 36. Kg1 $2 {[%emt 0:01:00][%mdl 8192]} (36. Kf1 $17 Bxc2 37. Nxc2) 36... Qe1+ $2 {[%emt 0:01:07]} (36... Bf3 $19 {has better winning chances.} 37. a5 c6) 37. Nf1 {[%emt 0:00:15]} Bxc2 {[%emt 0:00:26] Black is more active.} 38. Qxc2 {[%emt 0:00:04]} Qxb4 {[%emt 0:00:06][%mdl 4096] Endgame KQN-KQN} 39. Ne3 {[%emt 0:00:41]} (39. Kf2 $17 {was worth a try.}) 39... Qe1+ $19 {[%emt 0:03:48]} 40. Nf1 {[%emt 0:00:01]} Kg6 {[%emt 0:02:06]} 41. Qb3 {[%emt 0:08:51]} Qe4 {[%emt 0:00:49]} 42. Ne3 {[%emt 0:01:38]} Ne6 {[%emt 0:01:53]} 43. Kf2 {[%emt 0:04:26]} h5 {[%emt 0:07:21]} (43... Nxc5 $2 44. Qg8+ Kf6 45. Nd5+ Qxd5 46. Qxd5 $18) 44. Nf1 {[%emt 0:10:59]} Kf6 {[%emt 0:01:43]} 45. Qa3 {[%emt 0:03:09]} (45. Qc3+ {is a better defense.} Kg6 46. c6) 45... c6 {[%emt 0:01:54]} 46. a5 {[%emt 0:00:44]} Qd4+ {[%emt 0:03:15]} 47. Kg2 $2 {[%emt 0:01:41]} (47. Qe3) 47... h4 {[%emt 0:00:34] ( -> ...h3+)} 48. Ne3 {[%emt 0:03:17]} h3+ {[%emt 0:00:24]} (48... Qd2+ $142 49. Kf1 Nd4 50. Qa1 Qe2+ 51. Kg1 Qxe3+ 52. Kh1 h3 53. Qf1 Ne2 54. Qa1+ Kg6 55. Qg7+ Kxg7 56. a6 Qg1#) 49. Kf2 {[%emt 0:00:27]} Nxc5 {[%emt 0:01:12] What a bad dream for White.  Weighted Error Value: White=0.85/Black=0.59} (49... Qd2+ $142 50. Kg1 Nd4 51. Qc3 Qxc3 52. Kf2 Qd2+ 53. Kf1 Qe2+ 54. Kg1 Nf3+ 55. Kh1 Qxh2#) 0-1